bitfinex/quotes_SOLUSD_20250718
["timestamp","ask_amount","ask_price","bid_price","bid_amount"]
[1752858389284,0.75,178.49,178.44,0.56041246]
[1752858389622,0.69,178.48,178.45,29.48]
[1752858389898,0.69,178.48,178.45,41.13650186]
[1752858390056,0.06,178.49,178.47,11.65650186]
[1752858390257,0.06,178.49,178.48,29.48]
[1752858390486,0.75,178.49,178.48,29.48]
[1752858391578,0.06,178.49,178.48,41.13650186]
[1752858392455,0.06,178.49,178.48,29.48]
[1752858392659,0.75,178.49,178.48,29.48]
[1752858392888,0.06,178.49,178.48,41.13650186]
[1752858393693,0.06,178.49,178.48,46.73937052]
[1752858394189,0.06,178.49,178.48,41.81650186]
[1752858394493,0.06,178.49,178.48,41.13650186]
[1752858395887,0.06,178.49,178.48,46.73937052]
[1752858396097,0.06,178.49,178.48,47.41937052]
[1752858399562,0.06,178.49,178.48,41.13650186]
[1752858399861,0.06,178.49,178.48,29.48]
[1752858400060,0.06,178.49,178.48,41.13650186]
[1752858400499,0.06,178.49,178.48,47.41937052]
[1752858401568,0.06,178.49,178.48,35.08286866]
[1752858401765,0.06,178.49,178.48,29.48]
[1752858401968,0.06,178.49,178.48,41.17650186]
[1752858403165,0.75,178.49,178.48,29.52]
[1752858404094,0.75,178.49,178.48,41.17650186]
[1752858404302,0.06,178.49,178.48,41.17650186]
[1752858404668,0.06,178.49,178.48,29.52]
[1752858404868,0.75,178.49,178.48,29.52]
[1752858406096,0.06,178.49,178.48,41.17650186]
[1752858406269,0.73,178.49,178.48,29.52]
[1752858406469,6.33255476,178.49,178.48,29.52]
[1752858406697,17.98905662,178.49,178.47,0.03]
[1752858406880,12.32650186,178.48,178.47,0.03]
[1752858407076,17.92937052,178.48,178.47,0.03]
[1752858407292,6.27286866,178.48,178.47,0.03]
[1752858407596,0.67,178.48,178.47,0.03]
[1752858407780,0.06,178.49,178.47,11.68650186]
[1752858407975,0.06,178.49,178.48,29.56]
[1752858408171,0.73,178.49,178.48,29.56]
[1752858409397,0.06,178.49,178.48,41.21650186]
[1752858409881,0.06,178.49,178.48,29.56]
[1752858410083,0.06,178.49,178.48,41.21650186]
[1752858410983,12.38650186,178.49,178.47,0.03]
[1752858411198,12.32650186,178.48,178.47,0.03]
[1752858411375,17.92937052,178.48,178.47,0.03]
[1752858416711,6.27286866,178.48,178.47,0.03]
[1752858416878,17.92937052,178.48,178.47,0.03]
[1752858419609,6.27286866,178.48,178.47,0.03]
[1752858419916,17.92937052,178.48,178.47,0.03]
[1752858420398,34.71405449,178.48,178.47,0.03]
[1752858420710,36.33745449,178.48,178.47,1e-08]
[1752858421010,26.0,178.45,178.43,0.03]
[1752858421210,11.65650186,178.44,178.43,0.03]
[1752858421387,12.32650186,178.44,178.43,0.03]
[1752858421996,29.11118583,178.44,178.43,0.03]
[1752858423201,34.71531046,178.44,178.43,0.03]
[1752858423808,17.93062649,178.44,178.43,0.03]
[1752858425015,5.60412463,178.44,178.43,0.03]
[1752858425218,95.94412463,178.44,178.43,0.03]
[1752858426819,89.67,178.44,178.43,0.03]
[1752858428803,95.27412463,178.44,178.43,0.03]
[1752858429021,89.67,178.44,178.43,0.03]
[1752858429602,89.67,178.44,178.43,11.68650186]
[1752858429812,89.67,178.44,178.43,12.37650186]
[1752858430027,89.67,178.44,178.43,11.68650186]
[1752858431997,90.34,178.44,178.43,0.03]
[1752858432509,95.27412463,178.44,178.43,0.03]
[1752858432713,95.94412463,178.44,178.43,0.03]
[1752858434221,107.60062649,178.44,178.43,0.03]
[1752858434932,95.94412463,178.44,178.43,0.03]
[1752858440929,90.34,178.44,178.43,0.03]
[1752858441102,95.94412463,178.44,178.43,0.03]
[1752858442035,107.60062649,178.44,178.43,0.03]
[1752858443030,6.27412463,178.44,178.43,0.03]
[1752858443202,17.93062649,178.44,178.43,0.03]
[1752858444218,36.35061046,178.44,178.43,0.03]
[1752858444835,65.83061046,178.44,178.43,0.03]
[1752858445137,61.30458827,178.44,178.43,0.03]
[1752858445848,31.82458827,178.44,178.43,0.03]
[1752858447925,15.0399043,178.44,178.43,0.03]
[1752858449866,31.82458827,178.44,178.43,0.03]
[1752858450027,61.30458827,178.44,178.43,0.03]
[1752858454434,13.4046043,178.44,178.43,0.03]
[1752858457932,6.27412463,178.44,178.43,0.03]
[1752858458133,13.4046043,178.44,178.43,0.03]
[1752858458332,5.60412463,178.44,178.43,0.03]
[1752858458645,31.60412463,178.44,178.43,0.03]
[1752858459244,0.06,178.47,178.43,7.88047967]
[1752858459450,5.66320119,178.47,178.45,7.13047967]
[1752858459959,5.66320119,178.47,178.43,0.03]
[1752858459960,0.06,178.47,178.46,7.85047967]
[1752858460831,0.06,178.47,178.46,0.72]
[1752858461055,7.86047967,178.47,178.43,0.03]
[1752858461650,26.67,178.46,178.43,0.03]
[1752858461830,7.13047967,178.44,178.43,0.03]
[1752858462033,12.7346043,178.44,178.43,0.03]
[1752858462227,30.18928827,178.44,178.43,0.03]
[1752858463048,34.67650715,178.44,178.43,0.03]
[1752858464958,23.0588086,178.44,178.43,0.03]
[1752858465139,34.67650715,178.44,178.43,0.03]
[1752858469047,34.67650715,178.44,178.43,1e-08]
[1752858469048,64.13650715,178.44,178.43,1e-08]
[1752858471853,52.5188086,178.44,178.43,1e-08]
[1752858472050,34.67650715,178.44,178.43,1e-08]
[1752858475467,34.67650715,178.44,178.39,1e-08]
[1752858475468,16.78468397,178.4,178.39,1e-08]
[1752858475690,57.86238252,178.4,178.39,1e-08]
[1752858475972,58.58238252,178.4,178.39,1e-08]
[1752858476353,33.56399203,178.4,178.39,1e-08]
[1752858476664,63.02399203,178.4,178.39,1e-08]
[1752858477040,39.16937319,178.4,178.39,1e-08]
[1752858477266,34.72776368,178.4,178.39,1e-08]
[1752858477456,64.18776368,178.4,178.39,1e-08]
[1752858479577,5.60538116,178.4,178.39,1e-08]
[1752858479871,17.22307971,178.4,178.39,1e-08]
[1752858480573,5.60538116,178.4,178.39,1e-08]
[1752858480747,5.60538116,178.4,178.39,0.71000001]
[1752858481450,34.72776368,178.4,178.39,1e-08]
[1752858481668,65.70676368,178.4,178.39,1e-08]
[1752858481978,42.78468397,178.36,178.35,1e-08]
[1752858482175,83.86238252,178.36,178.35,1e-08]
[1752858482383,84.58238252,178.36,178.35,1e-08]
[1752858482982,84.58238252,178.36,178.31,1e-08]
[1752858483160,28.40238252,178.32,178.31,1e-08]
[1752858483364,34.01027843,178.32,178.31,1e-08]
[1752858483687,34.73027843,178.32,178.31,1e-08]
[1752858483881,28.40238252,178.3,178.29,1e-08]
[1752858484057,57.86238252,178.3,178.29,1e-08]
[1752858484256,58.58238252,178.3,178.29,1e-08]
[1752858484483,26.0,178.28,178.27,1e-08]
[1752858484669,41.07769855,178.28,178.27,1e-08]
[1752858484983,41.79769855,178.28,178.27,1e-08]
[1752858485186,57.86238252,178.28,178.27,1e-08]
[1752858485370,28.40238252,178.28,178.27,1e-08]
[1752858485719,34.73153665,178.28,178.27,1e-08]
[1752858485873,16.78468397,178.27,178.25,1e-08]
[1752858486071,11.61769855,178.26,178.25,1e-08]
[1752858486371,2.81646144,178.27,178.25,1e-08]
[1752858486567,5.60915413,178.28,178.25,1e-08]
[1752858486568,26.0,178.26,178.25,0.71000001]
[1752858487403,5.60915413,178.28,178.25,12.32769856]
[1752858487562,5.60915413,178.28,178.26,0.71]
[1752858487960,8.36471152,178.28,178.26,0.71]
[1752858488407,8.36471152,178.28,178.27,0.71]
[1752858488699,8.36471152,178.28,178.25,11.61769856]
[1752858488998,8.36471152,178.28,178.26,0.71]
[1752858489198,8.36471152,178.28,178.27,0.03]
[1752858489968,26.0,178.29,178.27,12.35769855]
[1752858490171,5.60819069,178.32,178.28,12.32769855]
[1752858490379,5.60819069,178.32,178.27,0.03]
[1752858490380,8.45348266,178.32,178.3,11.61769855]
[1752858490587,8.45348266,178.32,178.3,12.32769855]
[1752858490797,8.45348266,178.32,178.3,0.71]
[1752858491302,8.45348266,178.32,178.29,11.61769855]
[1752858491475,8.45348266,178.32,178.29,12.32769855]
[1752858491678,8.45348266,178.32,178.29,0.71]
[1752858491880,8.45348266,178.32,178.3,12.32769855]
[1752858492188,2.84529197,178.32,178.3,12.32769855]
[1752858492371,26.0,178.32,178.31,0.71]
[1752858492799,5.60765895,178.33,178.31,12.32769855]
[1752858492996,31.60765895,178.33,178.31,12.32769855]
[1752858494398,0.06,178.36,178.32,12.32769855]
[1752858494608,0.06,178.36,178.35,11.61769855]
[1752858494775,5.66667869,178.36,178.34,11.61769855]
[1752858495097,5.66667869,178.36,178.33,12.32769855]
[1752858495524,5.66667869,178.36,178.33,11.61769855]
[1752858495675,5.66667869,178.36,178.32,11.61769855]
[1752858496401,5.60758145,178.33,178.29,11.61769855]
[1752858497001,5.60758145,178.33,178.3,0.72]
[1752858498116,5.60758145,178.33,178.3,12.33769855]
[1752858498290,5.60758145,178.33,178.31,0.72]
[1752858498488,5.60695262,178.35,178.32,0.72]
[1752858499217,5.60695262,178.35,178.31,11.61769855]
[1752858499401,5.60695262,178.35,178.31,12.33769855]
[1752858502333,5.60695262,178.35,178.32,12.33769855]
[1752858502507,5.60695262,178.35,178.33,0.72]
[1752858502697,5.60695262,178.35,178.29,0.72]
[1752858502897,11.61769855,178.33,178.28,11.61769855]
[1752858503229,12.32769855,178.33,178.28,12.33769855]
[1752858503921,11.61769855,178.34,178.29,12.33769855]
[1752858504334,12.32769855,178.34,178.29,12.33769855]
[1752858505048,17.93528,178.33,178.27,6.34]
[1752858505327,5.60758145,178.33,178.31,11.61769855]
[1752858505538,31.60695262,178.35,178.32,12.33769855]
[1752858505751,8.45294471,178.36,178.34,11.61769855]
[1752858506028,5.66667578,178.36,178.35,11.61769855]
[1752858506433,0.06,178.36,178.35,12.33769855]
[1752858510232,0.06,178.36,178.35,24.10585117]
[1752858510635,0.06,178.36,178.35,40.89053514]
[1752858511914,0.06,178.36,178.35,42.39123514]
[1752858512931,0.06,178.36,178.35,72.3919304]
[1752858513443,0.06,178.4,178.36,16.78468397]
[1752858513635,0.06,178.4,178.39,11.61769855]
[1752858514141,0.06,178.4,178.39,12.33769855]
[1752858514519,0.06,178.4,178.39,17.94339393]
[1752858517636,0.06,178.4,178.39,47.36339393]
[1752858518046,0.06,178.4,178.39,41.75769855]
[1752858519062,0.06,178.4,178.39,41.03769855]
[1752858519676,0.06,178.4,178.39,41.75769855]
[1752858520666,0.06,178.4,178.39,47.36339393]
[1752858522668,0.06,178.4,178.39,64.1480779]
[1752858526379,0.06,178.4,178.39,64.70864743]
[1752858529991,0.06,178.47,178.39,90.34058444]
[1752858530174,0.06,178.47,178.46,11.61769855]
[1752858530377,0.06,178.47,178.46,41.01769855]
[1752858530887,11.67769855,178.47,178.38,5.60592863]
[1752858531097,7.12668752,178.45,178.4,7.12668752]
[1752858531390,26.7,178.46,178.41,29.4]
[1752858531573,7.82668752,178.45,178.41,29.4]
[1752858531767,6.30412463,178.44,178.41,29.4]
[1752858532961,0.7,178.43,178.41,29.4]
[1752858533182,0.7,178.42,178.41,29.4]
[1752858533991,0.7,178.42,178.36,0.69]
[1752858534162,12.31485747,178.42,178.37,40.99485747]
[1752858534480,0.06,178.4,178.37,29.38]
[1752858534691,0.06,178.4,178.37,40.99485747]
[1752858534896,0.76,178.4,178.37,40.99485747]
[1752858535268,0.06,178.4,178.38,11.61485747]
[1752858535498,0.06,178.4,178.39,29.38]
[1752858537498,0.76,178.4,178.39,29.38]
[1752858538601,6.36538116,178.4,178.39,29.38]
[1752858539009,6.36538116,178.4,178.36,0.03]
[1752858539209,0.7,178.39,178.36,11.64485747]
[1752858539373,0.7,178.39,178.36,0.03]
[1752858539575,0.7,178.39,178.36,29.41]
[1752858539996,0.7,178.38,178.36,29.41]
[1752858540387,0.7,178.37,178.36,29.41]
[1752858541114,6.30632393,178.37,178.36,29.41]
[1752858541816,6.30632393,178.37,178.36,0.03]
[1752858542017,17.9211814,178.37,178.36,0.03]
[1752858542179,31.93699123,178.37,178.3,68.79798482]
[1752858542384,11.61485747,178.33,178.31,29.38]
[1752858542619,109.32213376,178.37,178.31,29.38]
[1752858542620,12.31485747,178.32,178.31,29.38]
[1752858542815,13.87645747,178.32,178.27,0.03]
[1752858542985,17.2240116,178.28,178.27,0.03]
[1752858543409,17.9240116,178.28,178.27,0.03]
[1752858543615,0.7,178.28,178.27,0.03]
[1752858543916,6.30915413,178.28,178.27,0.03]
[1752858544789,17.9240116,178.28,178.27,0.03]
[1752858545184,0.7,178.28,178.27,0.03]
[1752858545502,6.30915413,178.28,178.27,0.03]
[1752858546308,0.7,178.28,178.27,0.03]
[1752858547083,6.30847892,178.31,178.27,11.64485747]
[1752858547292,32.30847892,178.31,178.28,11.61485747]
[1752858547487,32.30847892,178.31,178.28,40.99485747]
[1752858547719,26.7,178.31,178.29,11.61485747]
[1752858548224,32.30822264,178.31,178.29,11.61485747]
[1752858548722,31.60822264,178.31,178.29,11.61485747]
[1752858548884,5.60794014,178.32,178.29,11.61485747]
[1752858549484,6.30794014,178.32,178.29,11.61485747]
[1752858550516,6.30794014,178.32,178.3,11.61485747]
[1752858551028,6.30703898,178.35,178.31,40.99485747]
[1752858551313,5.60671425,178.36,178.34,11.61485747]
[1752858551684,6.30671425,178.36,178.34,11.61485747]
[1752858552297,31.60637978,178.37,178.34,11.61485747]
[1752858552512,31.60637978,178.37,178.35,11.61485747]
[1752858552700,5.6061007,178.38,178.36,11.61485747]
[1752858552882,6.3061007,178.38,178.36,11.61485747]
[1752858553088,5.6061007,178.38,178.36,11.61485747]
[1752858553591,6.3061007,178.38,178.36,11.61485747]
[1752858554003,0.7,178.37,178.34,29.38]
[1752858554226,17.22095817,178.38,178.35,11.61485747]
[1752858554227,0.7,178.36,178.35,11.61485747]
[1752858554384,0.7,178.36,178.34,29.38]
[1752858554584,5.6061007,178.38,178.29,0.69]
[1752858554585,0.7,178.35,178.29,0.69]
[1752858554897,0.7,178.35,178.31,11.61485747]
[1752858555100,0.7,178.34,178.31,11.61485747]
[1752858556312,5.60758145,178.33,178.31,11.61485747]
[1752858557708,0.68,178.32,178.3,40.99485747]
[1752858558407,0.68,178.31,178.27,0.03]
[1752858558606,12.29485747,178.31,178.27,29.41]
[1752858558796,0.68,178.3,178.27,29.41]
[1752858559120,12.29485747,178.3,178.27,29.41]
[1752858559309,12.29485747,178.3,178.27,0.03]
[1752858559310,0.68,178.29,178.27,0.03]
[1752858560287,0.68,178.28,178.27,0.03]
[1752858560504,6.28915413,178.28,178.27,0.03]
[1752858561104,5.60894052,178.29,178.27,0.03]
[1752858561322,6.28894052,178.29,178.27,0.03]
[1752858561609,5.60894052,178.29,178.27,0.03]
[1752858561824,0.68,178.28,178.27,0.03]
[1752858563729,5.609058,178.29,178.27,0.03]
[1752858563896,6.289058,178.29,178.27,0.03]
[1752858564100,5.609058,178.29,178.27,0.03]
[1752858564327,12.29485747,178.28,178.27,0.03]
[1752858564618,17.9040116,178.28,178.27,0.03]
[1752858564828,6.28915413,178.28,178.27,0.03]
[1752858564992,13.42908932,178.28,178.27,0.03]
[1752858565200,6.28915413,178.28,178.27,0.03]
[1752858565990,13.42908932,178.28,178.27,0.03]
[1752858566194,103.12908932,178.28,178.27,0.03]
[1752858566505,119.91377329,178.28,178.27,0.03]
[1752858567213,127.77247329,178.28,178.27,1e-08]
[1752858568132,38.07247329,178.28,178.27,1e-08]
[1752858568801,31.79767329,178.28,178.27,1e-08]
[1752858568999,7.87305413,178.28,178.27,1e-08]
[1752858569197,26.0,178.28,178.27,1e-08]
[1752858569397,5.60853923,178.3,178.27,11.63762735]
[1752858569620,5.60826889,178.31,178.29,11.63762734]
[1752858569930,0.68,178.3,178.27,11.63762735]
[1752858570595,0.68,178.29,178.27,1e-08]
[1752858570823,12.31762734,178.29,178.27,1e-08]
[1752858571122,54.42231131,178.28,178.27,1e-08]
[1752858571325,38.31762734,178.28,178.27,1e-08]
[1752858571698,26.68,178.28,178.27,1e-08]
[1752858572013,38.31762734,178.28,178.27,1e-08]
[1752858572218,26.68,178.28,178.27,1e-08]
[1752858572424,38.31762734,178.28,178.27,1e-08]
[1752858572803,43.92678147,178.28,178.27,1e-08]
[1752858575208,32.28915413,178.28,178.27,1e-08]
[1752858575530,43.92678147,178.28,178.27,1e-08]
[1752858575721,26.0,178.28,178.27,1e-08]
[1752858576026,31.60915413,178.28,178.27,1e-08]
[1752858576227,26.0,178.28,178.27,1e-08]
[1752858576617,89.7,178.29,178.27,11.63762735]
[1752858576799,95.30884513,178.29,178.27,11.63762735]
[1752858577522,26.0,178.29,178.28,11.63762734]
[1752858578032,5.60822626,178.31,178.28,11.63762734]
[1752858578204,89.7,178.33,178.28,0.68]
[1752858578400,90.38,178.33,178.3,11.63762734]
[1752858578633,93.13198321,178.33,178.3,11.63762734]
[1752858579010,5.60798258,178.32,178.3,11.63762734]
[1752858579208,98.73964466,178.33,178.3,11.63762734]
[1752858579822,26.0,178.34,178.32,11.63762734]
[1752858580021,6.34666549,178.36,178.33,11.63762734]
[1752858580417,6.34666549,178.36,178.31,0.68]
[1752858580620,6.34666549,178.36,178.33,11.63762734]
[1752858580825,26.0,178.35,178.34,11.63762734]
[1752858581219,26.0,178.35,178.33,11.63762734]
[1752858582026,32.28698758,178.35,178.29,0.68]
[1752858582336,32.28698758,178.35,178.32,11.63762734]
[1752858582513,0.68,178.34,178.31,11.63762734]
[1752858583025,43.24461492,178.35,178.29,0.68]
[1752858583241,12.31762734,178.33,178.28,11.63762734]
[1752858583538,11.63762734,178.34,178.29,11.63762734]
[1752858583716,45.62436913,178.35,178.29,11.63762734]
[1752858583717,32.28698758,178.35,178.29,11.63762734]
[1752858583907,32.28698758,178.35,178.31,11.63762734]
[1752858584312,32.28698758,178.35,178.32,11.63762734]
[1752858585230,0.68,178.34,178.29,0.68]
[1752858585412,11.63762734,178.34,178.29,11.63762734]
[1752858585618,0.68,178.33,178.29,11.63762734]
[1752858585841,0.68,178.33,178.3,11.63762734]
[1752858586521,0.68,178.32,178.3,11.63762734]
[1752858587240,6.28821042,178.31,178.29,11.63762734]
[1752858587611,5.60821042,178.31,178.29,11.63762734]
[1752858587931,6.28821042,178.31,178.29,11.63762734]
[1752858588430,5.60798842,178.32,178.29,11.63762734]
[1752858589020,5.60798842,178.32,178.3,11.63762734]
[1752858589424,95.30765924,178.33,178.3,11.63762734]
[1752858589815,89.7,178.33,178.32,11.63762734]
[1752858590140,89.7,178.33,178.32,12.29762734]
[1752858590343,26.0,178.35,178.32,0.66]
[1752858590527,5.60697199,178.35,178.34,11.63762734]
[1752858591039,31.66672601,178.36,178.34,11.63762734]
[1752858591413,32.34672601,178.36,178.33,11.63762734]
[1752858592335,32.34672601,178.36,178.34,11.63762734]
[1752858592924,32.34672601,178.36,178.34,7.13149065]
[1752858592925,31.66672601,178.36,178.34,7.13149065]
[1752858593345,32.34672601,178.36,178.34,7.13149065]
[1752858593843,0.68,178.35,178.33,7.13149065]
[1752858594043,31.66672601,178.36,178.33,7.13149065]
[1752858594421,0.06,178.36,178.35,7.13149065]
[1752858594622,0.06,178.36,178.35,7.79149065]
[1752858595027,0.06,178.36,178.35,7.13149065]
[1752858595219,0.06,178.36,178.35,7.79149065]
[1752858595414,0.06,178.36,178.35,7.13149065]
[1752858596144,0.06,178.36,178.35,7.79149065]
[1752858600250,0.06,178.36,178.32,29.34]
[1752858600437,0.68,178.35,178.32,29.34]
[1752858600624,0.68,178.34,178.32,36.47149065]
[1752858600828,0.74,178.36,178.32,36.47149065]
[1752858601162,0.68,178.35,178.33,7.13149065]
[1752858601328,6.34663825,178.36,178.33,7.13149065]
[1752858601523,5.66663825,178.36,178.33,7.13149065]
[1752858601741,5.66663825,178.36,178.34,7.13149065]
[1752858602550,0.06,178.36,178.35,7.13149065]
[1752858602966,0.74,178.36,178.35,7.13149065]
[1752858603316,5.60695262,178.35,178.33,7.13149065]
[1752858603955,5.60695262,178.35,178.34,7.13149065]
[1752858604617,5.60695262,178.35,178.28,16.78468397]
[1752858604618,13.41844327,178.35,178.25,1e-08]
[1752858604817,97.51149065,178.34,178.29,7.13149065]
[1752858605018,0.68,178.33,178.29,7.13149065]
[1752858605240,5.60821042,178.31,178.26,2.3183]
[1752858605427,5.60821042,178.31,178.27,36.47149066]
[1752858605428,95.30821042,178.31,178.27,36.47149066]
[1752858605634,7.81149065,178.3,178.27,29.34000001]
[1752858605878,0.68,178.29,178.27,29.34000001]
[1752858606046,96.83149065,178.3,178.27,1e-08]
[1752858606262,0.68,178.28,178.27,1e-08]
[1752858606560,7.81149065,178.28,178.27,1e-08]
[1752858607231,13.42064478,178.28,178.27,1e-08]
[1752858609659,26.0,178.26,178.25,1e-08]
[1752858609857,33.13149065,178.26,178.25,1e-08]
[1752858610064,33.81149065,178.26,178.25,1e-08]
[1752858610438,50.59617462,178.26,178.25,1e-08]
[1752858610641,52.17177462,178.26,178.25,1e-08]
[1752858611459,57.78155808,178.26,178.25,1e-08]
[1752858611764,87.10155808,178.26,178.25,1e-08]
[1752858613039,50.65006743,178.26,178.25,1e-08]
[1752858613373,70.33687411,178.26,178.25,1e-08]
[1752858614135,39.42127411,178.26,178.25,1e-08]
[1752858614455,32.28978346,178.26,178.25,1e-08]
[1752858614839,26.0,178.26,178.25,1e-08]
[1752858615044,5.60883953,178.29,178.25,7.13149066]
[1752858615243,26.0,178.27,178.25,7.13149066]
[1752858615443,31.60971153,178.27,178.25,7.13149066]
[1752858615672,31.60971153,178.27,178.25,1e-08]
[1752858615841,0.72,178.26,178.25,1e-08]
[1752858616047,7.85149065,178.26,178.25,1e-08]
[1752858617654,13.46127411,178.26,178.25,1e-08]
[1752858618546,6.32978346,178.26,178.25,1e-08]
[1752858619170,39.46127411,178.26,178.25,1e-08]
[1752858619344,26.0,178.24,178.23,0.03]
[1752858619544,26.0,178.24,178.22,0.03]
[1752858619545,89.7,178.23,178.22,0.03]
[1752858619744,26.0,178.2,178.19,0.03]
[1752858619976,33.13149065,178.2,178.19,0.03]
[1752858620271,33.85149065,178.2,178.19,0.03]
[1752858620858,50.63617462,178.2,178.19,0.03]
[1752858621077,59.65063486,178.2,178.19,0.03]
[1752858621245,16.78468397,178.19,178.18,0.1]
[1752858621572,26.0,178.16,178.14,0.03]
[1752858621877,17.26443692,178.15,178.14,0.03]
[1752858622062,17.98443692,178.15,178.14,0.03]
[1752858622455,47.32443692,178.15,178.14,0.03]
[1752858623052,34.76912089,178.15,178.14,0.03]
[1752858623256,23.11793123,178.15,178.14,0.03]
[1752858623579,34.76912089,178.15,178.14,0.03]
[1752858624150,37.60766173,178.15,178.14,0.03]
[1752858625471,37.60766173,178.15,178.14,1e-08]
[1752858626552,147.9,178.16,178.14,1e-08]
[1752858626780,147.9,178.16,178.14,0.71000001]
[1752858626989,26.0,178.17,178.15,0.71]
[1752858627152,5.61239282,178.18,178.15,0.71]
[1752858627858,11.65118966,178.16,178.14,1e-08]
[1752858628054,0.72,178.17,178.14,1e-08]
[1752858628275,0.72,178.15,178.14,1e-08]
[1752858628588,5.61324726,178.15,178.14,1e-08]
[1752858628792,34.76912089,178.15,178.14,1e-08]
[1752858628956,34.76912089,178.15,178.11,0.1]
[1752858628957,42.78468397,178.12,178.11,0.1]
[1752858629159,54.43587363,178.12,178.11,0.1]
[1752858629363,37.65118966,178.12,178.11,0.1]
[1752858629558,11.65118966,178.13,178.11,0.1]
[1752858629968,12.37118966,178.13,178.11,0.1]
[1752858631092,43.98538233,178.12,178.11,0.1]
[1752858631496,60.7700663,178.12,178.11,0.1]
[1752858632092,31.61419267,178.12,178.11,0.1]
[1752858632507,43.26538233,178.12,178.11,0.1]
[1752858632803,43.98538233,178.12,178.11,0.1]
[1752858634782,43.26538233,178.12,178.11,0.1]
[1752858634986,31.61419267,178.12,178.11,0.1]
[1752858635270,43.98538233,178.12,178.11,0.1]
[1752858635470,43.26538233,178.12,178.11,0.1]
[1752858636370,26.0,178.12,178.11,0.1]
[1752858636574,26.0,178.12,178.11,0.81]
[1752858636986,89.7,178.14,178.11,12.46118966]
[1752858637295,89.7,178.14,178.13,11.65118966]
[1752858637502,89.7,178.14,178.13,0.71]
[1752858637680,89.7,178.14,178.13,12.36118966]
[1752858638498,5.61222734,178.19,178.13,12.36118966]
[1752858638703,5.61222734,178.19,178.15,11.65118966]
[1752858638882,0.72,178.19,178.15,11.65118966]
[1752858639215,89.7,178.2,178.18,11.65118966]
[1752858639516,95.31167227,178.2,178.19,11.65118966]
[1752858639986,95.31167227,178.2,178.18,12.36118966]
[1752858640189,95.31167227,178.2,178.18,0.71]
[1752858640385,95.31167227,178.2,178.18,11.65118966]
[1752858640605,95.31167227,178.2,178.17,11.65118966]
[1752858641682,95.31167227,178.2,178.17,12.36118966]
[1752858642101,89.7,178.2,178.19,11.65118966]
[1752858642273,26.06,178.22,178.19,12.36118966]
[1752858642274,5.67111367,178.22,178.19,12.36118966]
[1752858642474,0.72,178.21,178.17,11.65118966]
[1752858643011,12.8166056,178.22,178.17,7.14549193]
[1752858643215,39.5366056,178.22,178.17,7.14549193]
[1752858643518,7.14549193,178.19,178.14,7.14549193]
[1752858643683,7.86549193,178.19,178.14,7.14549193]
[1752858644084,13.47779409,178.18,178.13,7.14549193]
[1752858644296,12.75779409,178.18,178.14,0.71]
[1752858644904,5.61230216,178.18,178.15,7.85549193]
[1752858645107,5.67194643,178.2,178.16,7.85549193]
[1752858645689,5.67194643,178.2,178.17,7.14549193]
[1752858646301,5.67194643,178.2,178.16,7.85549193]
[1752858646810,5.67194643,178.2,178.17,0.66]
[1752858646984,5.67194643,178.2,178.16,7.14549193]
[1752858647184,12.81743836,178.2,178.15,7.14549193]
[1752858647402,0.72,178.19,178.15,7.14549193]
[1752858648314,0.72,178.18,178.14,7.14549193]
[1752858648615,5.67194643,178.2,178.16,7.14549193]
[1752858648790,5.67194643,178.2,178.16,7.80549193]
[1752858649114,5.67194643,178.2,178.16,7.14549193]
[1752858649314,6.39194643,178.2,178.16,7.14549193]
[1752858649898,6.39194643,178.2,178.14,0.66]
[1752858650205,89.7,178.19,178.15,7.14549193]
[1752858650507,0.72,178.18,178.15,7.14549193]
[1752858650706,89.7,178.19,178.15,7.14549193]